fUST/lending_fUST_20240705
["ID","MTS","AMOUNT","RATE_DAILY","PERIOD"]
[331277751,1720171660469,-500.0,0.0005589,120]
[331277752,1720171660545,-500.0,0.0005589,120]
[331277753,1720171660630,-500.0,0.0005589,120]
[331277754,1720171660715,-151.0,0.0005589,120]
[331277755,1720171660802,-151.0,0.0005589,120]
[331277756,1720171661202,-151.0,0.0005589,120]
[331277757,1720171661280,-500.0,0.0005589,120]
[331277758,1720171661357,-500.0,0.0005589,120]
[331277759,1720171661435,-500.0,0.0005589,120]
[331277760,1720171661929,-500.0,0.0005589,120]
[331277761,1720171662167,-229.299107,0.0005589,120]
[331277762,1720171662476,-500.0,0.0005589,120]
[331277763,1720171662573,-229.299107,0.0005589,120]
[331277764,1720171662657,-229.299107,0.0005589,120]
[331277765,1720171662734,-500.0,0.0005589,120]
[331277766,1720171662812,-229.299107,0.0005589,120]
[331277767,1720171662894,-229.299107,0.0005589,120]
[331277768,1720171662974,-229.299107,0.0005589,120]
[331277769,1720171663059,-1538.46,0.0005589,120]
[331277770,1720171663134,-500.0,0.0005589,120]
[331277771,1720171663211,-1097.81,0.0005589,120]
[331277772,1720171663286,-500.0,0.0005589,120]
[331277773,1720171663358,-500.0,0.0005589,120]
[331277774,1720171663437,-17964.74,0.0005589,120]
[331277775,1720171663511,-5658.71,0.0005589,120]
[331277776,1720171663592,-1859.97,0.0005589,120]
[331277777,1720171663671,-502.93493318,0.0005589,120]
[331277778,1720171663746,-685.0,0.0005589,120]
[331277779,1720171663826,-500.0,0.0005589,120]
[331277780,1720171663906,-511.41527576,0.0005589,120]
[331277781,1720171664101,-500.0,0.0005589,120]
[331277782,1720171664396,-500.0,0.0005589,120]
[331277783,1720171664474,-500.0,0.0005589,120]
[331277784,1720171664550,-500.0,0.0005589,120]
[331277785,1720171664632,-1980.74,0.0005589,21]
[331277786,1720171664714,-523.95463356,0.0005589,120]
[331277787,1720171664794,-500.0,0.0005589,120]
[331277788,1720171664871,-500.0,0.0005589,120]
[331277789,1720171664948,-997.01,0.0005589,120]
[331277790,1720171665028,-27353.7,0.0005589,120]
[331277791,1720171665107,-3614.12,0.0005589,120]
[331277792,1720171665925,-500.0,0.0005589,120]
[331277793,1720171666491,-500.0,0.0005589,120]
[331277794,1720171666794,-492.02435946,0.0005589,120]
[331277795,1720171667018,-274.80066088,0.0005589,120]
[331277796,1720171667286,-500.0,0.0005589,120]
[331277797,1720171667547,-11038.48,0.0005589,120]
[331277798,1720171667820,-500.0,0.0005589,120]
[331277799,1720171667896,-500.0,0.0005589,120]
[331277800,1720171668084,-1058.79,0.0005589,120]
[331277801,1720171668373,-500.0,0.0005589,120]
[331277802,1720171668915,-693.3,0.0005589,120]
[331277803,1720171669201,-1986.84,0.0005589,120]
[331277804,1720171669280,-1066.68,0.0005589,120]
[331277805,1720171669491,-787.95,0.0005589,120]
[331277806,1720171669566,-500.0,0.0005589,120]
[331277807,1720171669720,-500.0,0.0005589,120]
[331277808,1720171669797,-1549.3,0.0005589,120]
[331277809,1720171669872,-500.0,0.0005589,120]
[331277810,1720171670073,-500.0,0.0005589,120]
[331277811,1720171670148,-1365.1,0.0005589,120]
[331277812,1720171670225,-653.39,0.0005589,120]
[331277813,1720171670825,-500.0,0.0005589,120]
[331277814,1720171670901,-500.0,0.0005589,120]
[331277815,1720171670971,-500.0,0.0005589,120]
[331277816,1720171671048,-500.0,0.0005589,120]
[331277817,1720171671120,-500.0,0.0005589,120]
[331277818,1720171671290,-776.59,0.0005589,120]
[331277819,1720171672040,-500.0,0.0005589,120]
[331277820,1720171672113,-500.0,0.0005589,120]
[331277821,1720171672185,-730.7,0.0005589,120]
[331277822,1720171672255,-500.0,0.0005589,120]
[331277823,1720171672327,-2895.15,0.0005589,120]
[331277824,1720171672396,-500.0,0.0005589,120]
[331277825,1720171672993,-500.0,0.0005589,120]
[331277826,1720171673070,-760.23,0.0005589,120]
[331277827,1720171673150,-1341.26,0.0005589,120]
[331277828,1720171673235,-500.0,0.0005589,120]
[331277829,1720171673318,-5680.29267272,0.0005589,120]
[331277830,1720171676591,3000.0,0.00013864,2]
[331277911,1720171686544,999.943904,0.00013903,2]
[331277962,1720171698625,-461.78645939,0.00014033,2]
[331277992,1720171773503,1844.44410492,0.00025,120]
[331277993,1720171830118,150.5,0.0001878,62]
[331277994,1720171832128,150.5,0.0001877,62]
[331277995,1720171832250,150.5,0.0001878,62]
[331277996,1720171832439,150.5,0.0001878,62]
[331278001,1720171832909,422.0,0.0001878,62]
[331278002,1720171833014,150.5,0.0001876,62]
[331278003,1720171833102,150.5,0.0001877,62]
[331278004,1720171833192,158.89,0.0001877,62]
[331278005,1720171833551,422.0,0.0001877,62]
[331278006,1720171833785,150.5,0.0001876,62]
[331278007,1720171833873,422.0,0.0001876,62]
[331278059,1720171834729,-357.64188761,0.00014033,2]
[331278060,1720171834739,-1199.275835,0.00014625,2]
[331278061,1720171834748,-300.0,0.0001487,2]
[331278062,1720171834757,-300.0,0.0001487,2]
[331278063,1720171834766,-500.0,0.00014871,2]
[331278064,1720171834775,-500.0,0.00014871,2]
[331278065,1720171834784,-500.0,0.00014871,2]
[331278066,1720171834793,-500.0,0.00014871,2]
[331278068,1720171834802,-500.0,0.00014871,2]
[331278070,1720171834811,-500.0,0.00014871,2]
[331278072,1720171834820,-331.48779543,0.00014871,2]
[331278074,1720171834830,-290.03297906,0.00014871,2]
[331278076,1720171834840,-500.0,0.00014871,2]
[331278078,1720171834850,-24900.0,0.00014872,2]
[331278080,1720171834859,-2353.94886847,0.00014899,2]
[331278082,1720171834869,-1508.10961278,0.00014999,4]
[331278084,1720171834878,-1558.72276708,0.00014999,2]
[331278086,1720171834888,-9245.75851987,0.00016245,2]
[331278088,1720171834900,-12122.29052813,0.00016245,2]
[331278090,1720171834911,-500.0,0.00016254,2]
[331278092,1720171834921,-500.0,0.00016254,2]
[331278094,1720171834930,-500.0,0.00016254,2]
[331278095,1720171834940,-583.94379048,0.00016254,2]
[331278097,1720171834950,-155.84834013,0.00016254,2]
[331278099,1720171834959,-500.0,0.00016254,2]
[331278101,1720171834969,-173.72353987,0.00016254,2]
[331278103,1720171834978,-500.0,0.00016254,2]
[331278105,1720171834988,-500.0,0.00016254,2]
[331278107,1720171834998,-500.0,0.00016254,2]
[331278109,1720171835007,-500.0,0.00016254,2]
[331278111,1720171835017,-500.0,0.00016254,2]
[331278113,1720171835026,-500.0,0.00016254,2]
[331278115,1720171835038,-200.0,0.00016254,2]
[331278117,1720171835049,-32682.13109103,0.00016255,2]
[331278119,1720171835059,-14890.09029607,0.00016255,2]
[331278121,1720171835068,-15002.001931,0.00016255,2]
[331278123,1720171835077,-17247.80566422,0.00016255,2]
[331278125,1720171835089,-30000.0,0.00016255,2]
[331278127,1720171835100,-420.0,0.00016277,2]
[331278129,1720171835109,-420.0,0.00016357,2]
[331278131,1720171835121,-166.666666,0.00016438,2]
[331278133,1720171835131,-166.666666,0.00016823,2]
[331278135,1720171835141,-1092.00991852,0.00017009,2]
[331278220,1720171835992,341.31056228,0.0003037,120]
[331278268,1720171841779,-1040.68938884,0.00017009,2]
[331278270,1720171841788,-182.53824085,0.00017009,2]
[331278272,1720171841797,-320.92376288,0.00017009,2]
[331278274,1720171841807,-1158.30679459,0.00017009,2]
[331278276,1720171841816,-1587.66604664,0.00017009,2]
[331278278,1720171841826,-2118.54298063,0.00017009,2]
[331278280,1720171841835,-539.46535418,0.00017009,2]
[331278282,1720171841844,-1104.74204561,0.00017009,2]
[331278284,1720171841858,-155.70248833,0.00017009,2]
[331278286,1720171841868,-4711.13030053,0.00017009,2]
[331278288,1720171841878,-215.79151424,0.00017009,2]
[331278290,1720171841887,-161.90676022,0.00017009,2]
[331278292,1720171841897,-1916.49944035,0.00017009,2]
[331278294,1720171841910,-293.73637019,0.00017009,2]
[331278296,1720171841920,-948.84245203,0.00017009,2]
[331278298,1720171841930,-155.98446281,0.00017009,2]
[331278300,1720171841939,-4167.61193952,0.00017009,2]
[331278302,1720171841949,-293.01727503,0.00017009,2]
[331278304,1720171841959,-490.93235365,0.00017009,2]
[331278306,1720171841968,-166.666666,0.00017208,2]
[331278308,1720171841977,-166.666666,0.00017592,2]
[331278310,1720171841987,-587.0,0.00017816,2]
[331278312,1720171841996,-166.666666,0.00017977,2]
[331278314,1720171842005,-587.0,0.00017993,2]
[331278316,1720171842015,-166.666666,0.00018362,2]
[331278318,1720171842024,-4788.26390262,0.0001869,2]
[331278320,1720171842034,-13038.09510365,0.0001878,2]
[331278322,1720171842050,-8329.95394435,0.0001878,2]
[331278324,1720171842059,-113108.20521569,0.0001879,2]
[331278326,1720171842068,-250.0,0.00019041,2]
[331278328,1720171842079,-159.43194,0.00019178,2]
[331278329,1720171842088,-159.465965,0.00019178,2]
[331278331,1720171842097,-823.0,0.00019501,2]
[331278332,1720171842108,-823.0,0.00019792,2]
[331278333,1720171842120,-154.83742071,0.0002,2]
[331278334,1720171842131,-328.01540199,0.0002,2]
[331278335,1720171842149,-999.943904,0.00020855,2]
[331278336,1720171842163,-355.729811,0.00021096,2]
[331278337,1720171842172,-1020.0,0.00021346,2]
[331278338,1720171842182,-1152.0,0.00021771,2]
[331278339,1720171842191,-2699.93975309,0.00022,2]
[331278340,1720171842201,-879.23230837,0.0002217,2]
[331278341,1720171842211,-161.21149,0.00023562,2]
[331278342,1720171842220,-1613.0,0.00023948,2]
[331278343,1720171842230,-189.04078712,0.00025,2]
[331278344,1720171842239,-10684.024524,0.00025491,3]
[331278345,1720171842249,-39382.81958909,0.00025501,2]
[331278346,1720171842274,-12717.25406204,0.00025501,2]
[331278347,1720171842283,-2258.0,0.00026343,2]
[331278348,1720171842293,-155.22827276,0.00026574,2]
[331278349,1720171842303,-355.729811,0.00027195,2]
[331278350,1720171842312,-10684.024524,0.00027387,3]
[331278351,1720171842321,-915.06377454,0.00027397,2]
[331278352,1720171842330,-500.0,0.00027397,30]
[331278353,1720171842339,-500.0,0.00027397,2]
[331278354,1720171842349,-500.0,0.00027397,2]
[331278355,1720171842358,-500.0,0.00027397,2]
[331278356,1720171842368,-500.0,0.00027397,2]
[331278357,1720171842377,-500.0,0.00027397,2]
[331278358,1720171842389,-500.0,0.00027397,2]
[331278359,1720171842399,-500.0,0.00027397,2]
[331278360,1720171842416,-299.89870253,0.00027397,2]
[331278361,1720171842427,-500.0,0.00027397,2]
[331278362,1720171842437,-224.8099451,0.00027397,120]
[331278363,1720171842447,-150.0,0.0002765,2]
[331278364,1720171842456,-4788.26390259,0.00027691,2]
[331278365,1720171842466,-250.0,0.00028198,2]
[331278366,1720171842475,-300.0,0.00028746,2]
[331278367,1720171842484,-1901.0,0.00028978,2]
[331278368,1720171842493,-642.76758109,0.0003,4]
[331278369,1720171842503,-471.27760912,0.0003,4]
[331278370,1720171842512,-351.32038796,0.0003,30]
[331278371,1720171842522,-501.98856594,0.0003029,2]
[331278372,1720171842531,-355.729811,0.00033295,2]
[331278373,1720171842540,-159.465965,0.00034399,2]
[331278374,1720171842550,-2316.79226907,0.00034491,4]
[331278375,1720171842559,-2316.79226907,0.00034491,4]
[331278376,1720171842569,-1500.68966724,0.00034562,2]
[331278377,1720171842578,-2196.40771411,0.0003458,4]
[331278378,1720171842589,-243.0,0.00034999,3]
[331278379,1720171842598,-264.86125261,0.00035581,2]
[331278380,1720171842608,-14209.92837273,0.00035615,4]
[331278381,1720171842617,-5264.75,0.00035616,3]
[331278382,1720171842627,-8220.03,0.00035616,3]
[331278383,1720171842637,-6850.03,0.00035616,3]
[331278384,1720171842654,-5708.35,0.00035616,3]
[331278385,1720171842666,-395.39220748,0.00036,30]
[331278386,1720171842676,-4788.26390259,0.00036692,2]
[331278387,1720171842685,-393.89323921,0.00036732,4]
[331278388,1720171842695,-1134.02056861,0.00036732,4]
[331278389,1720171842704,-1134.02056861,0.00036732,4]
[331278390,1720171842714,-154.85288975,0.0003701,4]
[331278391,1720171842723,-154.85288975,0.0003701,4]
[331278392,1720171842732,-10684.024524,0.00037249,4]
[331278393,1720171842742,-371.39375676,0.00037259,4]
[331278394,1720171842751,-9380.78685145,0.00037899,4]
[331278395,1720171842761,-9380.78685145,0.00037899,4]
[331278396,1720171842771,-360.48479037,0.00037999,4]
[331278397,1720171842780,-10684.024524,0.00039167,5]
[331278398,1720171842789,-211.50108117,0.00039167,4]
[331278399,1720171842799,-355.729811,0.00039394,2]
[331278400,1720171842808,-3990.00210664,0.00039999,4]
[331278401,1720171842817,-151.0,0.0004,120]
[331278402,1720171842826,-151.0,0.0004,120]
[331278403,1720171842835,-151.0,0.00041507,120]
[331278404,1720171842844,-1500.0,0.00041589,4]
[331278405,1720171842853,-1285.31653565,0.00041589,120]
[331278406,1720171842863,-2202.83504814,0.00041999,4]
[331278407,1720171842878,-2286.74255802,0.00041999,4]
[331278408,1720171842892,-154.85288975,0.00042229,4]
[331278409,1720171842902,-284.50722532,0.00042398,4]
[331278410,1720171842914,-268.8794469,0.000425,30]
[331278411,1720171842924,-270.75084604,0.00042629,4]
[331278412,1720171842933,-154.85288975,0.00042629,4]
[331278413,1720171842942,-155.62808659,0.00042629,4]
[331278414,1720171842952,-156.13082353,0.00042629,4]
[331278415,1720171842962,-245.83084824,0.00042629,4]
[331278416,1720171842971,-173.66290897,0.00042958,4]
[331278417,1720171842980,-195.36743126,0.00042999,2]
[331278418,1720171842990,-151.0,0.00043014,120]
[331278419,1720171842999,-671.28950625,0.00043287,21]
[331278420,1720171843008,-154.85288975,0.00043615,10]
[331278421,1720171843018,-494.14797639,0.00043615,4]
[331278422,1720171843030,-358.7956249,0.00043834,4]
[331278423,1720171843043,-156.92185569,0.00044,120]
[331278424,1720171843053,-151.0,0.00044521,120]
[331278425,1720171843204,-151.0,0.00044548,120]
[331278426,1720171843215,-379.04509844,0.00045,120]
[331278427,1720171843224,-5000.0,0.000455,50]
[331278428,1720171843233,-4788.26390259,0.00045693,2]
[331278429,1720171843243,-151.0,0.00046027,120]
[331278430,1720171843251,-150.0,0.00047133,2]
[331278431,1720171843260,-877.0,0.00047133,2]
[331278432,1720171843270,-10000.0,0.000475,50]
[331278433,1720171843279,-151.0,0.00047534,120]
[331278434,1720171843289,-1000.0,0.00047945,120]
[331278435,1720171843298,-10684.024524,0.00048483,6]
[331278436,1720171843307,-1000.0,0.00048493,120]
[331278437,1720171843317,-232.401,0.00048892,2]
[331278438,1720171843326,-1000.0,0.00049041,120]
[331278439,1720171843335,-151.0,0.00049041,120]
[331278440,1720171843344,-151.0,0.00049096,120]
[331278441,1720171843353,-10684.024524,0.00049105,6]
[331278442,1720171843363,-88888.0,0.00049115,5]
[331278443,1720171843373,-153.0,0.00049288,120]
[331278444,1720171843382,-162.0,0.00049288,120]
[331278445,1720171843397,-162.0,0.00049288,120]
[331278446,1720171843420,-162.0,0.00049288,120]
[331278447,1720171843434,-162.0,0.00049288,120]
[331278448,1720171843443,-162.0,0.00049288,120]
[331278449,1720171843453,-162.0,0.00049288,120]
[331278450,1720171843462,-162.0,0.00049288,120]
[331278451,1720171843472,-162.0,0.00049288,120]
[331278452,1720171843482,-162.0,0.00049288,120]
[331278453,1720171843491,-162.0,0.00049288,120]
[331278454,1720171843501,-162.0,0.00049288,120]
[331278455,1720171843511,-162.0,0.00049288,120]
[331278456,1720171843521,-162.0,0.00049288,120]
[331278457,1720171843533,-162.0,0.00049288,120]
[331278458,1720171843542,-162.0,0.00049288,120]
[331278459,1720171843552,-162.0,0.00049288,120]
[331278460,1720171843561,-162.0,0.00049288,120]
[331278461,1720171843570,-162.0,0.00049288,120]
[331278462,1720171843579,-162.0,0.00049288,120]
[331278463,1720171843588,-162.0,0.00049288,120]
[331278464,1720171843598,-162.0,0.00049288,120]
[331278465,1720171843608,-162.0,0.00049288,120]
[331278466,1720171843617,-162.0,0.00049288,120]
[331278467,1720171843627,-162.0,0.00049288,120]
[331278468,1720171843636,-162.0,0.00049288,120]
[331278469,1720171843649,-162.0,0.00049288,120]
[331278470,1720171843660,-162.0,0.00049288,120]
[331278471,1720171843669,-162.0,0.00049288,120]
[331278472,1720171843679,-162.0,0.00049288,120]
[331278473,1720171843688,-162.0,0.00049288,120]
[331278474,1720171843698,-162.0,0.00049288,120]
[331278475,1720171843707,-162.0,0.00049288,120]
[331278476,1720171843717,-162.0,0.00049288,120]
[331278477,1720171843726,-162.0,0.00049288,120]
[331278478,1720171843736,-162.0,0.00049288,120]
[331278479,1720171843746,-162.0,0.00049288,120]
[331278480,1720171843756,-162.0,0.00049288,120]
[331278481,1720171843765,-162.0,0.00049288,120]
[331278482,1720171843775,-162.0,0.00049288,120]
[331278483,1720171843785,-162.0,0.00049288,120]
[331278485,1720171843794,-162.0,0.00049288,120]
[331278487,1720171843804,-162.0,0.00049288,120]
[331278489,1720171843814,-162.0,0.00049288,120]
[331278491,1720171843823,-162.0,0.00049288,120]
[331278492,1720171843832,-162.0,0.00049288,120]
[331278494,1720171843841,-162.0,0.00049288,120]
[331278496,1720171843850,-162.0,0.00049288,120]
[331278497,1720171843860,-162.0,0.00049288,120]
[331278498,1720171843869,-162.0,0.00049288,120]
[331278499,1720171843879,-400.0,0.00049315,120]
[331278500,1720171843890,-306.0,0.00049315,2]
[331278501,1720171843899,-412.22956,0.00049315,2]
[331278502,1720171843910,-159.465965,0.0004962,2]
[331278503,1720171843920,-10684.024524,0.0004999,6]
[331278504,1720171843929,-4308.03496036,0.0005,60]
[331278505,1720171843938,-154.85288975,0.0005,30]
[331278506,1720171843948,-1500.0,0.0005,14]
[331278507,1720171843958,-10000.0,0.0005,60]
[331278508,1720171843968,-155.0,0.0005018,60]
[331278509,1720171843978,-151.0,0.00050548,120]
[331278510,1720171843987,-306.030258,0.000506,27]
[331278511,1720171843997,-241.0547,0.00050704,2]
[331278512,1720171844009,-151.0,0.00052055,120]
[331278513,1720171844022,-10000.0,0.000525,60]
[331278514,1720171844032,-1152.21455243,0.000528,2]
[331278515,1720171844046,-178.149452,0.00052929,30]
[331278516,1720171844056,-188.31976,0.00052929,30]
[331278517,1720171844065,-151.0,0.00053562,120]
[331278518,1720171844075,-151.0,0.00053644,120]
[331278519,1720171844086,-595.0,0.000539,30]
[331278520,1720171844095,-10000.0,0.00054,54]
[331278521,1720171844105,-4788.26390259,0.00054694,2]
[331278522,1720171844114,-21368.049048,0.00054784,6]
[331278523,1720171844127,-500.0,0.00054794,2]
[331278524,1720171844136,-500.0,0.00054794,120]
[331278525,1720171844145,-330.84007039,0.00054794,120]
[331278526,1720171844156,-500.0,0.00054794,120]
[331278527,1720171844170,-500.0,0.00054794,120]
[331278528,1720171844180,-500.0,0.00054794,120]
[331278529,1720171844195,-500.0,0.00054794,120]
[331278530,1720171844204,-514.03689235,0.00054794,120]
[331278531,1720171844214,-500.0,0.00054794,120]
[331278532,1720171844224,-500.0,0.00054794,120]
[331278533,1720171844234,-500.0,0.00054794,120]
[331278534,1720171844243,-500.0,0.00054794,120]
[331278535,1720171844253,-500.0,0.00054794,120]
[331278536,1720171844262,-502.08605764,0.00054794,120]
[331278537,1720171844272,-183.86463938,0.00054794,120]
[331278538,1720171844281,-500.0,0.00054794,120]
[331278539,1720171844291,-500.0,0.00054794,120]
[331278540,1720171844300,-500.0,0.00054794,120]
[331278541,1720171844310,-500.0,0.00054794,120]
[331278542,1720171844319,-612.14173412,0.00054794,120]
[331278543,1720171844329,-500.0,0.00054794,120]
[331278544,1720171844339,-573.38011424,0.00054794,120]
[331278545,1720171844349,-500.0,0.00054794,120]
[331278546,1720171844359,-500.0,0.00054794,120]
[331278547,1720171844369,-500.0,0.00054794,120]
[331278548,1720171844380,-500.0,0.00054794,120]
[331278549,1720171844389,-500.0,0.00054794,120]
[331278550,1720171844398,-500.0,0.00054794,120]
[331278551,1720171844411,-500.0,0.00054794,120]
[331278552,1720171844420,-500.0,0.00054794,120]
[331278553,1720171844430,-346.31774272,0.00054794,4]
[331278554,1720171844439,-500.0,0.00054794,120]
[331278555,1720171844449,-500.0,0.00054794,120]
[331278556,1720171844460,-500.0,0.00054794,120]
[331278557,1720171844469,-500.0,0.00054794,120]
[331278558,1720171844479,-1171.91271258,0.00054794,4]
[331278559,1720171844489,-500.0,0.00054794,120]
[331278560,1720171844498,-500.0,0.00054794,120]
[331278561,1720171844508,-500.0,0.00054794,120]
[331278562,1720171844517,-500.0,0.00054794,120]
[331278563,1720171844527,-500.0,0.00054794,120]
[331278564,1720171844537,-500.0,0.00054794,120]
[331278565,1720171844546,-500.0,0.00054794,120]
[331278566,1720171844556,-500.0,0.00054794,120]
[331278567,1720171844565,-500.0,0.00054794,120]
[331278568,1720171844575,-500.0,0.00054794,120]
[331278569,1720171844584,-1185.33,0.00054794,120]
[331278570,1720171844595,-500.0,0.00054794,120]
[331278571,1720171844605,-500.0,0.00054794,120]
[331278572,1720171844614,-500.0,0.00054794,120]
[331278573,1720171844624,-500.0,0.00054794,120]
[331278574,1720171844650,-868.32,0.00054794,120]
[331278575,1720171844703,-510.68,0.00054794,120]
[331278577,1720171844715,-500.0,0.00054794,120]
[331278579,1720171844725,-500.0,0.00054794,120]
[331278581,1720171844735,-500.0,0.00054794,120]
[331278583,1720171844744,-508.60766179,0.00054794,120]
[331278584,1720171844754,-503.92294144,0.00054794,120]
[331278585,1720171844764,-500.0,0.00054794,120]
[331278586,1720171844774,-500.0,0.00054794,120]
[331278587,1720171844783,-500.0,0.00054794,120]
[331278588,1720171844793,-500.0,0.00054794,120]
[331278589,1720171844803,-500.0,0.00054794,120]
[331278591,1720171844812,-500.0,0.00054794,120]
[331278592,1720171844822,-500.0,0.00054794,120]
[331278593,1720171844832,-500.0,0.00054794,120]
[331278594,1720171844842,-500.0,0.00054794,120]
[331278595,1720171844851,-514.7487565,0.00054794,120]
[331278596,1720171844861,-500.0,0.00054794,120]
[331278597,1720171844871,-500.0,0.00054794,120]
[331278598,1720171844880,-500.0,0.00054794,120]
[331278599,1720171844890,-500.0,0.00054794,120]
[331278600,1720171844899,-500.0,0.00054794,120]
[331278601,1720171844910,-500.0,0.00054794,120]
[331278602,1720171844919,-500.0,0.00054794,120]
[331278603,1720171844932,-508.48253682,0.00054794,120]
[331278604,1720171844944,-576.14442581,0.00054794,120]
[331278605,1720171844954,-500.0,0.00054794,120]
[331278606,1720171844964,-500.0,0.00054794,120]
[331278607,1720171844974,-500.0,0.00054794,120]
[331278608,1720171844984,-1235.21,0.00054794,120]
[331278609,1720171844994,-500.0,0.00054794,120]
[331278610,1720171845004,-500.0,0.00054794,120]
[331278611,1720171845013,-500.0,0.00054794,120]
[331278612,1720171845023,-500.0,0.00054794,120]
[331278613,1720171845033,-500.0,0.00054794,120]
[331278614,1720171845046,-500.0,0.00054794,120]
[331278615,1720171845056,-500.0,0.00054794,120]
[331278616,1720171845066,-500.0,0.00054794,120]
[331278617,1720171845075,-500.0,0.00054794,120]
[331278618,1720171845087,-500.0,0.00054794,120]
[331278619,1720171845097,-500.84536241,0.00054794,120]
[331278620,1720171845109,-500.0,0.00054794,120]
[331278621,1720171845118,-500.0,0.00054794,120]
[331278622,1720171845130,-500.0,0.00054794,120]
[331278623,1720171845139,-500.0,0.00054794,120]
[331278624,1720171845149,-500.0,0.00054794,120]
[331278625,1720171845161,-501.87428358,0.00054794,120]
[331278626,1720171845171,-500.0,0.00054794,120]
[331278627,1720171845180,-1000.0,0.00054794,120]
[331278628,1720171845190,-503.86377363,0.00054794,120]
[331278629,1720171845199,-500.0,0.00054794,120]
[331278630,1720171845209,-582.35280385,0.00054794,120]
[331278631,1720171845218,-3500.0,0.00054794,120]
[331278632,1720171845227,-333.24,0.00054794,120]
[331278633,1720171845236,-500.0,0.00054794,120]
[331278638,1720171845246,-500.0,0.00054794,120]
[331278641,1720171845256,-500.0,0.00054794,120]
[331278643,1720171845265,-500.0,0.00054794,120]
[331278645,1720171845275,-500.0,0.00054794,120]
[331278647,1720171845284,-500.0,0.00054794,120]
[331278651,1720171845294,-500.0,0.00054794,22]
[331278655,1720171845304,-1561.76,0.00054794,120]
[331278659,1720171845314,-4322.73,0.00054794,120]
[331278660,1720171845324,-500.0,0.00054794,120]
[331278661,1720171845334,-584.22285537,0.00054794,120]
[331278662,1720171845343,-500.0,0.00054794,120]
[331278663,1720171845353,-500.0,0.00054794,120]
[331278664,1720171845362,-500.0,0.00054794,120]
[331278665,1720171845371,-500.0,0.00054794,120]
[331278666,1720171845381,-500.0,0.00054794,120]
[331278667,1720171845391,-500.0,0.00054794,120]
[331278668,1720171845400,-500.0,0.00054794,120]
[331278669,1720171845413,-500.0,0.00054794,120]
[331278670,1720171845422,-500.0,0.00054794,120]
[331278671,1720171845432,-500.0,0.00054794,120]
[331278672,1720171845442,-500.0,0.00054794,120]
[331278673,1720171845452,-167.54516086,0.00054794,120]
[331278674,1720171845462,-500.0,0.00054794,120]
[331278675,1720171845472,-500.0,0.00054794,120]
[331278676,1720171845482,-500.0,0.00054794,120]
[331278677,1720171845491,-500.0,0.00054794,120]
[331278678,1720171845500,-500.0,0.00054794,120]
[331278679,1720171845510,-500.0,0.00054794,120]
[331278680,1720171845519,-500.0,0.00054794,120]
[331278681,1720171845530,-500.0,0.00054794,120]
[331278682,1720171845540,-500.0,0.00054794,120]
[331278683,1720171845549,-500.0,0.00054794,120]
[331278684,1720171845559,-859.92,0.00054794,120]
[331278685,1720171845568,-305.08804566,0.00054794,120]
[331278686,1720171845578,-321.24132141,0.00054794,120]
[331278687,1720171845589,-500.0,0.00054794,120]
[331278688,1720171845599,-500.0,0.00054794,120]
[331278689,1720171845610,-500.0,0.00054794,120]